{"text_format":"3","workbook":"xlsx","n_sheets":4,"sheets":["Formulář nabídky","Data grafu","Rozpis nákladů","Souhrn nákladů na nabídku"],"not_rendered":{"charts":1,"images":2,"defined_names":11},"read":"whole","date_system":"1900"}

{"sheet":"Formulář nabídky","index":0,"n_rows":21,"n_cols":6,"rows_kept":21,"merged":[[0,1,0,4],[1,1,1,2],[7,1,8,1],[7,2,8,2],[10,1,10,5],[12,1,12,5],[14,1,14,5],[15,1,15,2],[15,4,15,5],[16,1,16,2],[16,4,16,5],[18,1,18,5],[19,1,19,2],[19,4,19,5],[20,1,20,2],[20,4,20,5]]}
[null,"Formulář nabídky konstrukce"]
[null,"Informace o vlastníkovi",null,null,"Informace o dodavateli"]
[null,"Jméno","Do této buňky zadejte jméno vlastníka",null,"Společnost","Do této buňky zadejte název společnosti dodavatele"]
[null,"Adresa","Do této buňky zadejte adresu vlastníka",null,"Jméno","Do této buňky zadejte jméno dodavatele"]
[null,"PSČ, Město","Do této buňky zadejte město, kraj a PSČ vlastníka",null,"Adresa","Do této buňky zadejte adresu dodavatele"]
[null,"Telefon","Do této buňky zadejte telefonní číslo vlastníka",null,"PSČ, Město","Do této buňky zadejte město, kraj a PSČ dodavatele"]
[null,"E-mail","Do této buňky zadejte e-mailovou adresu vlastníka",null,"Telefon","Do této buňky zadejte telefonní číslo dodavatele"]
[null,"Název projektu","Do této buňky zadejte název projektu",null,"E-mail","Do této buňky zadejte e-mailovou adresu dodavatele "]
[{"$nulls":4},"Datum dokončení","Do této buňky zadejte datum dokončení"]
[null,"Rozsah práce"]
[null,"Sem patří rozsah práce projektu. Zadejte všechny požadované specifikace. \n\nUkázkový text: Toto bude falešný projekt stavby velkého schodiště. K vytvoření rámu použijeme pouze řezivo o velikosti 2x4 a 2x8 a také nosníkové konzoly. Schody budou vyřezány z materiálu velikosti 2x4. Použijí se šrouby o velikosti minimálně 2\".  Jakékoliv hřebíky budou o velikosti minimálně 10d. Váha návrhu musí udržet minimálně 500 liber na schod. Schody budou v úrovni domu. K domu bude připevněna stupačka. Dodavatel se postará o vyčištění."]
[null,"Nezahrnuté"]
[null,"Sem patří podrobnosti projektu, které nejsou zahrnuté. Zadejte vše, co není součástí této nabídky. \n\nUkázkový text: Nebudou nainstalovány žádné kolejnice. Pozemek připraví majitel. Schody natře majitel."]
[null,"Návrh společnosti"]
[null,"Sem přijde návrh společnosti. Zadejte přehled návrhu, včetně toho, kdo práci navrhuje, očekávané datum dokončení a výši návrhu.\n\nUkázkový text: My, Název společnosti, navrhujeme výše uvedený rozsah práce, která se má dokončit do Data dokončení za částku Celková částka."]
[]
[null,"Odesláno (zástupcem společnosti)",null,null,"Datum"]
[null,"Přijetí vlastníka"]
[null,"Sem patří přijetí vlastníka. Do prohlášení o potvrzení, které obsahuje datum dokončení a celkovou částku uvedenou v návrhu společnosti, zadejte jméno vlastníka. \n\nUkázkový text: Já, Jméno vlastníka, přijímám výše uvedený rozsah práce, která se má dokončit do Data dokončení za částku Celková částka."]
[]
[null,"Odesláno (vlastníkem domu nebo autorizovaným zástupcem)",null,null,"Datum"]

{"sheet":"Data grafu","index":1,"n_rows":7,"n_cols":3,"rows_kept":7,"hidden":true}
[]
[null,null,"Celkem"]
[null,{"$f":"INDEX(PoložkyNabídky[#Data],MATCH(1,PoložkyNabídky[Náklady seřazené],0),2)","v":"Poplatky za práci"},{"$f":"INDEX(PoložkyNabídky[#Data],MATCH(1,PoložkyNabídky[Náklady seřazené],0),4)","v":200}]
[null,{"$f":"INDEX(PoložkyNabídky[#Data],MATCH(2,PoložkyNabídky[Náklady seřazené],0),2)","v":"Řezivo 2x4x10"},{"$f":"INDEX(PoložkyNabídky[#Data],MATCH(2,PoložkyNabídky[Náklady seřazené],0),4)","v":99.39999999999999}]
[null,{"$f":"INDEX(PoložkyNabídky[#Data],MATCH(3,PoložkyNabídky[Náklady seřazené],0),2)","v":"Nosníkové konzoly"},{"$f":"INDEX(PoložkyNabídky[#Data],MATCH(3,PoložkyNabídky[Náklady seřazené],0),4)","v":74.7}]
[null,{"$f":"INDEX(PoložkyNabídky[#Data],MATCH(4,PoložkyNabídky[Náklady seřazené],0),2)","v":"Řezivo 2x8x10"},{"$f":"INDEX(PoložkyNabídky[#Data],MATCH(4,PoložkyNabídky[Náklady seřazené],0),4)","v":33.75}]
[null,{"$f":"INDEX(PoložkyNabídky[#Data],MATCH(5,PoložkyNabídky[Náklady seřazené],0),2)","v":"Pár rukavic, kožené"},{"$f":"INDEX(PoložkyNabídky[#Data],MATCH(5,PoložkyNabídky[Náklady seřazené],0),4)","v":15.5}]

{"sheet":"Rozpis nákladů","index":2,"n_rows":14,"n_cols":6,"rows_kept":14,"merged":[[0,1,0,4],[1,1,1,4]]}
[null,"Rozpis nákladů",{"$nulls":3}," "]
[null,"Seznam materiálů a nákladů"]
[null,"Množ.","Popis","Náklady","Celkem","Náklady seřazené"]
[null,5,"Řezivo 2x8x10",{"v":6.75,"d":"6.75 Kč"},{"$f":"IFERROR(PoložkyNabídky[[#This Row],[Náklady]]*PoložkyNabídky[[#This Row],[Množ.]], \"\")","v":{"v":33.75,"d":"33.75 Kč"}},{"$f":"_xlfn.RANK.EQ(PoložkyNabídky[[#This Row],[Celkem]],PoložkyNabídky[Celkem])","v":4}]
[null,20,"Řezivo 2x4x10",{"v":4.97,"d":"4.97 Kč"},{"$f":"IFERROR(PoložkyNabídky[[#This Row],[Náklady]]*PoložkyNabídky[[#This Row],[Množ.]], \"\")","v":{"v":99.39999999999999,"d":"99.40 Kč"}},{"$f":"_xlfn.RANK.EQ(PoložkyNabídky[[#This Row],[Celkem]],PoložkyNabídky[Celkem])","v":2}]
[null,30,"Nosníkové konzoly",{"v":2.49,"d":"2.49 Kč"},{"$f":"IFERROR(PoložkyNabídky[[#This Row],[Náklady]]*PoložkyNabídky[[#This Row],[Množ.]], \"\")","v":{"v":74.7,"d":"74.70 Kč"}},{"$f":"_xlfn.RANK.EQ(PoložkyNabídky[[#This Row],[Celkem]],PoložkyNabídky[Celkem])","v":3}]
[null,2,"Krabice šroubů, 2“",{"v":6.67,"d":"6.67 Kč"},{"$f":"IFERROR(PoložkyNabídky[[#This Row],[Náklady]]*PoložkyNabídky[[#This Row],[Množ.]], \"\")","v":{"v":13.34,"d":"13.34 Kč"}},{"$f":"_xlfn.RANK.EQ(PoložkyNabídky[[#This Row],[Celkem]],PoložkyNabídky[Celkem])","v":6}]
[null,2,"Krabice hřebíků, 10d",{"v":3.25,"d":"3.25 Kč"},{"$f":"IFERROR(PoložkyNabídky[[#This Row],[Náklady]]*PoložkyNabídky[[#This Row],[Množ.]], \"\")","v":{"v":6.5,"d":"6.50 Kč"}},{"$f":"_xlfn.RANK.EQ(PoložkyNabídky[[#This Row],[Celkem]],PoložkyNabídky[Celkem])","v":7}]
[null,2,"Pár rukavic, kožené",{"v":7.75,"d":"7.75 Kč"},{"$f":"IFERROR(PoložkyNabídky[[#This Row],[Náklady]]*PoložkyNabídky[[#This Row],[Množ.]], \"\")","v":{"v":15.5,"d":"15.50 Kč"}},{"$f":"_xlfn.RANK.EQ(PoložkyNabídky[[#This Row],[Celkem]],PoložkyNabídky[Celkem])","v":5}]
[null,2,"Poplatky za práci",{"v":100,"d":"100.00 Kč"},{"$f":"IFERROR(PoložkyNabídky[[#This Row],[Náklady]]*PoložkyNabídky[[#This Row],[Množ.]], \"\")","v":{"v":200,"d":"200.00 Kč"}},{"$f":"_xlfn.RANK.EQ(PoložkyNabídky[[#This Row],[Celkem]],PoložkyNabídky[Celkem])","v":1}]
[4,null,null,"Mezisoučet",{"$f":"SUBTOTAL(109,PoložkyNabídky[Celkem])","v":{"v":443.18999999999994,"d":"443.19 Kč"}}]
[5,null,null,"Sazba daně",{"v":0.075,"d":"7.50%"}]
[{"$nulls":3},"Daň",{"$f":"IFERROR(SazbaDaně*PoložkyNabídky[[#Totals],[Celkem]], \"\")","v":{"v":33.23924999999999,"d":"33.24 Kč"}}]
[{"$nulls":3},"Celkový součet",{"$f":"IFERROR(Daň+PoložkyNabídky[[#Totals],[Celkem]], \"\")","v":{"v":476.4292499999999,"d":"476.43 Kč"}}]

{"sheet":"Souhrn nákladů na nabídku","index":3,"n_rows":3,"n_cols":4,"rows_kept":3}
[null,"Souhrn nákladů na nabídku"]
[null,"Rozpis materiálů a nákladů",null,"Poznámky"]
[null,"Výsečový graf zobrazující nejvyšších 5 nákladů na materiál. Data jsou založená na tabulce Položky nabídky v listu Rozpis nákladů",null,"Do této buňky zadejte poznámky."]